[Event "Slovakia Open 2022"]
[Site "Bratislava"]
[Date "2022.10.01"]
[Round "7.6"]
[White "Pasti, Aron"]
[Black "Roshka, Yevgeniy"]
[Result "0-1"]
[ECO "B32"]
[WhiteElo "2350"]
[BlackElo "2497"]
[Annotator "TA"]
[PlyCount "144"]
[EventDate "2022.09.30"]
[EventCountry "SVK"]
[SourceTitle "playchess.com"]
[Source "ChessBase"]
[SourceQuality "1"]
[TimeControl "2700+10"]

{[%evp 17,144,45,49,43,46,49,44,16,16,16,23,11,25,9,10,0,0,0,0,0,0,0,0,0,0,0,0,0,0,-95,-95,-95,-95,-90,-95,-164,-165,-165,-164,-164,-164,-164,-196,-177,-54,-140,-140,-140,-140,-140,-140,-140,-140,-140,-140,-140,-140,-140,-140,-140,-140,-140,-140,-140,-125,-125,-125,-125,-125,-125,-125,-125,-125,-125,-125,-125,-125,-125,-104,-104,-104,-104,-104,-104,-70,-100,-100,-100,-100,-100,-100,-118,-118,-118,-118,-5081,-118,-118,-118,-118,-125,-125,-125,-125,-125,-125,0,-125,0,-126,-71,-71,-71,-126,-126,-29974,-29974,-29974,-29974,-29973,-29972,-29982,-29983,-29983,-29984,-29984,-29985,-29991,-4134]} 1. e4 {[%emt 0:00:14]} c5 {[%emt 0:00:02]} 2. Nf3 {[%emt 0:00:01]} Nc6 {[%emt 0:00:02]} 3. d4 {[%emt 0:00:02]} cxd4 {[%emt 0:00:02]} 4. Nxd4 {[%emt 0:00:01]} e5 {[%emt 0:00:01]} 5. Nb5 {[%emt 0:00:01]} a6 {[%emt 0:00:01]} 6. Nd6+ {[%emt 0:00:02]} Bxd6 {[%emt 0:00:02]} 7. Qxd6 {[%emt 0:00:02]} Qe7 {[%emt 0:00:01]} 8. Qd1 {[%emt 0:00:02] 8.Qxe7+ injects fresh life into this line.} Nf6 {[%emt 0:00:02]} 9. Nc3 {[%emt 0:00:11]} d6 {[%emt 0:00:27]} 10. Bg5 {[%emt 0:01:40] B32: Sicilian: Löwenthal and Kalashnikov Variations.} Be6 {[%emt 0:00:01]} 11. Nd5 {[%emt 0:00:22]} Bxd5 {[%emt 0:00:03]} 12. Bxf6 {[%emt 0:00:08] White is slightly better.} Qxf6 {[%emt 0:00:22]} 13. Qxd5 {[%emt 0:00:05]} O-O {[%emt 0:03:46]} 14. c3 {[%emt 0:00:51] Against Nd4} (14. Bd3 {looks sharper.} Nd4 15. O-O b5 16. c3) 14... Ne7 {[%emt 0:04:37]} 15. Qd2 {[%emt 0:01:18] [#]} ({Not} 15. Qxb7 Rfb8 16. Qd7 Rxb2 $17) 15... Rac8 $146 {[%emt 0:04:42]} ({Predecessor:} 15... Qe6 16. Be2 d5 17. exd5 Qxd5 18. Qxd5 Nxd5 19. Bf3 e4 20. Bxe4 Rfe8 21. O-O-O Nxc3 22. Bxh7+ Kxh7 23. bxc3 {1-0 (59) Podgorski,M (1810)-Jankowski,A (1692) Polanica Zdroj 2020}) 16. Bd3 {[%emt 0:00:24]} Rfd8 {[%emt 0:00:03]} 17. O-O {[%emt 0:00:55]} d5 {[%emt 0:00:10]} 18. exd5 {[%emt 0:00:10]} Nxd5 {[%emt 0:02:33] aiming for ...Nf4.} 19. Qc2 {[%emt 0:00:01]} g6 {[%emt 0:03:24] And now ...Nb4 would win.} 20. Be4 {[%emt 0:02:27]} Qb6 {[%emt 0:03:03]} 21. Rad1 {[%emt 0:01:48]} Nf6 {[%emt 0:00:04]} 22. b3 {[%emt 0:03:07]} Rd4 {[%emt 0:04:39]} 23. cxd4 {[%emt 0:03:06]} (23. Rxd4 $11 exd4 24. c4) 23... Rxc2 $17 {[%emt 0:00:07]} 24. Bxc2 {[%emt 0:00:01]} exd4 {[%emt 0:00:03]} 25. Rfe1 {[%emt 0:04:55]} Nd5 $1 {[%emt 0:01:11]} 26. Be4 {[%emt 0:06:28]} (26. Bd3 $17) 26... Nc3 $19 {[%emt 0:00:11][%csl LRa2,LRd1]} 27. Rd2 {[%emt 0:00:13]} Qe6 $1 {[%emt 0:13:37]} 28. Rxd4 {[%emt 0:00:20]} Qe5 $1 {[%emt 0:00:00]} 29. Rc4 {[%emt 0:05:09]} b5 $1 {[%emt 0:00:07]} 30. f4 {[%emt 0:00:19]} Ne2+ {[%emt 0:01:51]} (30... Qf6 $1 $19 31. Rc8+ Kg7) 31. Rxe2 {[%emt 0:03:12]} (31. Kh1 $15 Qxf4 32. Rc2) 31... Qa1+ $17 {[%emt 0:00:02]} 32. Kf2 {[%emt 0:00:04]} bxc4 {[%emt 0:00:02]} 33. bxc4 {[%emt 0:00:02][%mdl 4096] Endgame KQ-KRB} Qd4+ {[%emt 0:00:02]} 34. Kf1 {[%emt 0:00:42]} Qxc4 {[%emt 0:00:23] Threatens to win with ...Qc1+.} 35. g3 {[%emt 0:00:04]} a5 {[%emt 0:00:46][%cal Ba6a5,Ba5a4][%mdl 32]} 36. Bf3 {[%emt 0:00:30]} a4 {[%emt 0:00:03]} 37. h4 {[%emt 0:00:16]} Kg7 {[%emt 0:01:25]} 38. Kf2 {[%emt 0:00:06]} h6 {[%emt 0:00:38]} 39. Kg2 {[%emt 0:00:12]} Kf6 {[%emt 0:00:02]} 40. Kf2 {[%emt 0:00:38]} g5 {[%emt 0:00:17]} 41. hxg5+ {[%emt 0:00:04]} hxg5 {[%emt 0:00:02]} 42. fxg5+ {[%emt 0:00:02]} Kxg5 {[%emt 0:00:02]} 43. Kg2 {[%emt 0:00:27]} f5 {[%emt 0:00:42]} 44. Kf2 {[%emt 0:01:07]} Qd4+ {[%emt 0:00:40]} 45. Kg2 {[%emt 0:00:02]} Qh8 {[%emt 0:00:02]} 46. Re1 {[%emt 0:03:02]} Qg8 {[%emt 0:00:55]} 47. Re2 {[%emt 0:00:11]} f4 {[%emt 0:00:02]} 48. Kf2 {[%emt 0:00:37]} fxg3+ {[%emt 0:00:32]} 49. Kxg3 {[%emt 0:00:03]} Kf5+ {[%emt 0:00:14]} 50. Kf2 {[%emt 0:00:04]} a3 {[%emt 0:00:01]} 51. Bg2 {[%emt 0:00:43]} Qh8 {[%emt 0:00:03]} 52. Bf3 {[%emt 0:01:03]} Qh2+ {[%emt 0:00:03]} 53. Bg2 {[%emt 0:00:52]} Qh4+ {[%emt 0:00:03]} 54. Kg1 {[%emt 0:00:16]} Qd4+ {[%emt 0:00:31]} 55. Kf1 {[%emt 0:00:33]} Qc5 {[%emt 0:00:01]} 56. Bh1 $2 {[%emt 0:04:16][%mdl 8192] [#]} (56. Bf3 $17) 56... Kf4 $2 {[%emt 0:00:16]} (56... Qc1+ $1 $19 {has better winning chances.} 57. Kg2 Qd1 58. Rf2+ Kg4) 57. Be4 {[%emt 0:00:48]} Qc3 {[%emt 0:00:36]} 58. Kf2 {[%emt 0:00:09]} Qg3+ {[%emt 0:00:04]} 59. Kf1 {[%emt 0:00:01]} Qh3+ {[%emt 0:00:08]} 60. Bg2 {[%emt 0:00:02]} Qd3 {[%emt 0:00:02]} 61. Be4 {[%emt 0:00:25]} Qc3 {[%emt 0:00:34]} ({Better is} 61... Qd7 $17 62. Bc2 Qb5) 62. Kg2 {[%emt 0:00:08]} (62. Kf2 $11 {was the only way to keep the balance.}) 62... Qc5 {[%emt 0:00:08]} 63. Kf1 $1 {[%emt 0:00:09]} Kg3 {[%emt 0:00:27]} ({Black should play} 63... Qb6 64. Bc2 Kf3 65. Be4+ Kg3 66. Rg2+ Kf4) 64. Rg2+ {[%emt 0:00:02]} Kh3 {[%emt 0:00:01] ( -> ...Qc4+)} 65. Re2 {[%emt 0:00:07]} (65. Rd2 $142) 65... Qd4 {[%emt 0:00:12]} 66. Bf5+ $2 {[%emt 0:00:31][%mdl 8192]} (66. Ke1 $17) 66... Kg3 {[%emt 0:00:00] Black mates.} 67. Rg2+ {[%emt 0:00:07]} Kf3 {[%emt 0:00:00][%cal Rd4d1]} 68. Bg4+ {[%emt 0:00:07] [#]} Kf4 $1 {[%emt 0:00:06]} 69. Ke2 {[%emt 0:00:17]} Qb2+ {[%emt 0:00:08]} 70. Kf1 {[%emt 0:00:02]} Qa1+ {[%emt 0:00:01]} 71. Kf2 {[%emt 0:00:02]} Qxa2+ {[%emt 0:00:02]} 72. Kg1 {[%emt 0:00:01] [#]} Qxg2+ $3 {[%emt 0:00:02][%mdl 512] Weighted Error Value: White=0.21 (precise) /Black=0.17 (very precise)} 0-1

[Event "Slovakia Open 2022"]
[Site "Bratislava"]
[Date "2022.10.01"]
[Round "7.7"]
[White "Merva, Frantisek"]
[Black "Kraus, Tomas"]
[Result "0-1"]
[ECO "D02"]
[WhiteElo "1981"]
[BlackElo "2479"]
[Annotator "TA"]
[PlyCount "41"]
[EventDate "2022.09.30"]
[EventCountry "SVK"]
[SourceTitle "playchess.com"]
[Source "ChessBase"]
[SourceQuality "1"]
[TimeControl "2700+10"]

{[%evp 11,41,-8,-10,-26,-9,-21,-23,-123,-118,-162,-166,-160,-160,-160,-162,-182,-167,-193,-207,-200,-141,-136,-137,-138,-142,-154,-153,-162,-163,-282,-252,-292]} 1. d4 {[%emt 0:00:05]} d5 {[%emt 0:00:05]} 2. Nf3 {[%emt 0:00:07]} Nf6 {[%emt 0:00:46]} 3. Bf4 {[%emt 0:00:07]} c5 {[%emt 0:00:26]} 4. e3 {[%emt 0:01:15]} Nc6 {[%emt 0:00:15][%cal Bb8c6,Bc6b4,Bb4c2][%mdl 32]} 5. c3 {[%emt 0:00:07]} Qb6 {[%emt 0:00:52]} 6. Qc1 {[%emt 0:00:10]} Bf5 {[%emt 0:01:05]} 7. h3 {[%emt 0:00:39] D02: 1 d4 d5 2 Nf3 sidelines, including 2...Nf6 3 g3 and 2...Nf6 3 Bf4.} Rc8 {[%emt 0:01:44]} 8. Nbd2 {[%emt 0:00:21]} cxd4 {[%emt 0:01:41]} 9. exd4 {[%emt 0:00:12] [#]} (9. Nxd4 $11 {was the only way to keep the balance.} Nxd4 10. exd4) 9... Nb4 $1 $17 {[%emt 0:01:48][%mdl 512] [#]} 10. Be2 $146 {[%emt 0:07:00]} (10. g4 Nc2+) ({Predecessor:} 10. Ne5 Nc2+ 11. Kd1 Nxa1 12. Qxa1 h6 13. a4 a6 14. a5 Qd8 15. g4 Bd7 16. Be2 {0-1 (41) Siebrecht,S (2429)-Fridman,D (2619) Playchess.com INT 2020}) 10... Nc2+ {[%emt 0:01:40]} 11. Kf1 {[%emt 0:00:02]} Nxa1 {[%emt 0:00:09] Black is much more active. The white rooks are badly placed.} 12. Qxa1 {[%emt 0:00:08]} e6 {[%emt 0:01:19]} 13. g3 {[%emt 0:02:54]} Bd6 {[%emt 0:01:57]} 14. Be5 {[%emt 0:00:24]} Bxe5 {[%emt 0:02:35]} 15. Nxe5 {[%emt 0:00:08]} h6 {[%emt 0:01:35]} 16. Kg2 {[%emt 0:04:37]} O-O {[%emt 0:00:08]} 17. Re1 {[%emt 0:00:09]} Rc7 {[%emt 0:02:04]} 18. h4 {[%emt 0:06:25]} Ne4 {[%emt 0:00:57]} 19. Nxe4 {[%emt 0:01:11]} Bxe4+ {[%emt 0:00:15]} 20. Kg1 {[%emt 0:01:27]} (20. f3 {might work better.} f6 21. Nd3) 20... f6 $19 {[%emt 0:01:01]} 21. Nd3 {[%emt 0:00:05] Weighted Error Value: White=0.35/Black=0.06 (flawless)} 0-1

[Event "Slovakia Open 2022"]
[Site "Bratislava"]
[Date "2022.10.01"]
[Round "7.8"]
[White "Nemsak, Denis"]
[Black "Yankelevich, Lev"]
[Result "0-1"]
[ECO "A21"]
[WhiteElo "2012"]
[BlackElo "2484"]
[Annotator "TA"]
[PlyCount "92"]
[EventDate "2022.09.30"]
[EventCountry "SVK"]
[SourceTitle "playchess.com"]
[Source "ChessBase"]
[SourceQuality "1"]
[TimeControl "2700+10"]

{[%evp 9,92,11,16,12,15,14,18,14,22,-10,-6,-6,-12,-34,-35,-49,-48,-53,-52,-60,-62,-71,-69,-77,-28,-53,-39,-40,-37,-37,-31,-149,-154,-230,-236,-425,0,0,-72,-208,-197,-291,-198,-356,-342,-437,-170,-172,-153,-171,-173,-233,-210,-253,-253,-253,-253,-253,-253,-282,-282,-282,-266,-308,-297,-656,-655,-633,-619,-772,-686,-673,-652,-616,-597,-1014,-1003,-1066,-1058,-1247,-1191,-1973,-1973,-1820,-2062]} 1. c4 {[%emt 0:00:06]} e5 {[%emt 0:00:32]} 2. Nc3 {[%emt 0:00:04]} Bb4 {[%emt 0:00:02]} 3. Nd5 {[%emt 0:00:05]} a5 {[%emt 0:00:02]} 4. a3 {[%emt 0:00:18]} Be7 {[%emt 0:00:02]} 5. Nf3 {[%emt 0:00:34]} d6 {[%emt 0:00:10]} 6. d4 {[%emt 0:00:17] A21: English Opening: 1...e5 2 Nc3.} e4 {[%emt 0:00:41]} 7. Nd2 {[%emt 0:00:23]} f5 {[%emt 0:00:29]} 8. e3 {[%emt 0:02:22] The position is equal.} Nf6 {[%emt 0:00:02] [#]} 9. Nf4 $146 {[%emt 0:00:55]} ({Predecessor:} 9. Nxe7 Qxe7 10. Be2 O-O 11. O-O Nc6 12. Nb1 Nd8 13. Nc3 Ne6 14. Rb1 Bd7 15. b4 axb4 16. axb4 {1-0 (57) Brown,M (2524)-Kuybokarov,T (2513) Chess.com INT 2019}) 9... O-O {[%emt 0:00:20]} 10. h4 {[%emt 0:01:43]} c6 {[%emt 0:00:05]} 11. b3 {[%emt 0:02:10]} d5 {[%emt 0:00:14]} 12. Qc2 {[%emt 0:00:50]} Na6 {[%emt 0:01:53]} 13. Be2 {[%emt 0:06:01]} Nc7 {[%emt 0:00:22]} 14. Bb2 {[%emt 0:01:35]} Ne6 {[%emt 0:00:10]} 15. g3 {[%emt 0:00:32]} Nxf4 {[%emt 0:00:15]} 16. gxf4 {[%emt 0:00:04]} h5 {[%emt 0:00:06]} (16... Be6 $17) 17. f3 {[%emt 0:01:07]} exf3 {[%emt 0:01:44]} 18. Nxf3 {[%emt 0:02:06]} Ng4 {[%emt 0:00:06]} 19. Kd2 {[%emt 0:02:31]} Be6 {[%emt 0:01:28]} 20. Rhg1 {[%emt 0:03:15]} (20. c5 $15) 20... Bxh4 $17 {[%emt 0:00:39] Black is more active.} 21. Ne5 {[%emt 0:02:29]} (21. Nxh4 $17 {was necessary.} Qxh4 22. Rh1) 21... Bf2 $19 {[%emt 0:01:56][%csl LRe3,LRg1]} 22. Nxg4 {[%emt 0:00:30]} (22. Bxg4 fxg4 23. Rg2) 22... Bxg1 $2 {[%emt 0:00:14]} (22... hxg4 $2 23. Rg2 Qh4 24. Rf1 $19) (22... fxg4 $19 {has better winning chances.} 23. Rg2 Qh4) 23. Ne5 $1 $17 {[%emt 0:00:02]} Bf2 {[%emt 0:00:10][%cal Oa5a4] Hoping for ...a4!} 24. Rh1 {[%emt 0:00:06] This move loses the game for White.} (24. Rf1 $17 Qh4 25. Bf3) 24... h4 $19 {[%emt 0:00:23][%cal Oa5a4]} 25. Bh5 {[%emt 0:03:08]} (25. c5 {might work better.}) 25... g5 {[%emt 0:03:01][%cal Oa5a4]} 26. Ke2 $2 {[%emt 0:07:32]} (26. Nf3) 26... Bg3 {[%emt 0:00:11]} 27. Bc1 {[%emt 0:00:02]} g4 $2 {[%emt 0:00:14]} (27... gxf4 28. exf4 dxc4 29. bxc4 Qxd4) 28. Bxg4 {[%emt 0:00:05][%cal Oc4c5] [#]} a4 $1 {[%emt 0:00:09] aiming for ...axb3.} (28... fxg4 $2 29. Qg6+ Kh8 30. Qh6+ (30. Qxe6 Qf6 $16) 30... Kg8 31. Qxe6+ Kh8 32. Qh6+ Kg8 33. Qg6+ Kh8 34. Qxg4 $18) ({And not} 28... dxc4 29. bxc4 Rc8 30. Bf3 $17) 29. Bf3 {[%emt 0:03:09]} Qb6 {[%emt 0:04:28]} 30. c5 {[%emt 0:04:04]} (30. b4 $142) 30... Qxb3 {[%emt 0:00:17]} ({Wrong is} 30... axb3 $2 31. Qc3 Qb5+ 32. Kd2) 31. Qxb3 {[%emt 0:00:01]} axb3 {[%emt 0:00:02]} 32. Kd2 {[%emt 0:00:19]} Kg7 {[%emt 0:00:51] Against Ng6} 33. Kc3 {[%emt 0:00:04]} Rh8 {[%emt 0:00:08]} 34. Rh3 {[%emt 0:01:08]} Be1+ {[%emt 0:00:29]} 35. Kxb3 {[%emt 0:00:02]} Kf6 {[%emt 0:00:01]} 36. Rh1 {[%emt 0:00:01]} Ba5 {[%emt 0:00:04] Strongly threatening ...h3.} 37. Nd3 $2 {[%emt 0:01:26]} (37. Kc2) 37... h3 {[%emt 0:00:33] Black is clearly winning.} 38. Rh2 {[%emt 0:00:09]} Rag8 {[%emt 0:00:03]} 39. Nf2 {[%emt 0:00:03]} Rg1 {[%emt 0:00:15]} 40. Kc2 {[%emt 0:00:06]} Rg3 {[%emt 0:04:15]} 41. Bh1 {[%emt 0:00:02]} Bf7 {[%emt 0:00:36] [#] And now ...Bh5 would win.} 42. Kd3 {[%emt 0:00:31]} Bh5 {[%emt 0:01:15]} 43. Bb2 {[%emt 0:00:12]} Bg4 {[%emt 0:00:40]} 44. Bc1 {[%emt 0:00:02]} Be1 {[%emt 0:00:11] ...Bxf2 is the strong threat.} 45. Nxg4+ {[%emt 0:00:18]} fxg4 {[%emt 0:00:40]} 46. Rb2 {[%emt 0:00:05]} Rg1 {[%emt 0:00:03] Weighted Error Value: White=0.78/Black=0.31} 0-1

[Event "Slovakia Open 2022"]
[Site "Bratislava"]
[Date "2022.10.01"]
[Round "7.9"]
[White "Vadila, Ondrej"]
[Black "Kukelko, Alexey"]
[Result "0-1"]
[ECO "B62"]
[WhiteElo "2178"]
[BlackElo "2280"]
[Annotator "TA"]
[PlyCount "52"]
[EventDate "2022.09.30"]
[EventCountry "SVK"]
[SourceTitle "playchess.com"]
[Source "ChessBase"]
[SourceQuality "1"]
[TimeControl "2700+10"]

{[%evp 13,52,0,2,13,42,11,22,13,13,8,22,10,38,41,52,15,5,-50,-50,-46,-36,-71,-57,-62,-59,-84,-21,-87,-86,-148,-131,-738,-734,-821,-809,-1096,-1181,-1175,-1113,-1229,-1166]} 1. e4 {[%emt 0:00:07]} c5 {[%emt 0:00:10]} 2. Nf3 {[%emt 0:00:05]} d6 {[%emt 0:00:11]} 3. d4 {[%emt 0:00:24]} Nf6 {[%emt 0:00:14]} 4. Nc3 {[%emt 0:00:21]} cxd4 {[%emt 0:00:07]} 5. Nxd4 {[%emt 0:00:03]} Nc6 {[%emt 0:00:47]} 6. Bg5 {[%emt 0:00:33]} e6 {[%emt 0:01:28]} 7. f4 {[%emt 0:01:44]} Be7 {[%emt 0:00:43]} 8. Qd3 {[%emt 0:01:18] B62: Sicilian: Richter-Rauzer: 6...e6: Unusual White 7th moves.} a6 {[%emt 0:01:12]} 9. Be2 {[%emt 0:00:50]} Bd7 {[%emt 0:01:32]} 10. O-O-O {[%emt 0:01:27] The position is equal.} Rc8 {[%emt 0:03:53] is the legacy move (10...h6).} 11. Kb1 {[%emt 0:02:22]} b5 {[%emt 0:03:52]} 12. Bf3 {[%emt 0:04:01] [#]} b4 $146 {[%emt 0:05:34] Hoping for ...Nxd4.} ({Predecessor:} 12... Nxd4 13. Qxd4 Bc6 14. Rhf1 O-O 15. e5 dxe5 16. Qxd8 Rfxd8 17. Rxd8+ Bxd8 18. Bxc6 Rxc6 19. fxe5 {1-0 (51) Spyropoulos,N (2403)-Luo,T (2124) Chess.com INT 2020}) 13. Nce2 {[%emt 0:00:17]} Qc7 {[%emt 0:00:05]} 14. Nxc6 {[%emt 0:04:37]} (14. Bxf6 $5 gxf6 15. Nxc6 (15. Qxa6 Nxd4 16. Nxd4 e5 $11) 15... Qxc6 16. f5 $14) 14... Bxc6 {[%emt 0:00:07]} 15. e5 {[%emt 0:00:44]} (15. Nd4 $11 Bb7 16. Bh4) 15... dxe5 $15 {[%emt 0:06:12] And now ...e4 would win.} 16. Bxc6+ {[%emt 0:05:33]} Qxc6 {[%emt 0:00:44]} 17. fxe5 {[%emt 0:00:09]} Nd5 {[%emt 0:00:08]} 18. Bxe7 {[%emt 0:00:19]} Nxe7 {[%emt 0:00:02]} 19. Nd4 {[%emt 0:00:37]} Qc4 {[%emt 0:00:32]} (19... Qb7 $17) 20. Qg3 {[%emt 0:04:50]} (20. a3 $11 {remains equal.}) 20... O-O $17 {[%emt 0:01:13][%cal Bh8f8,Bf8d8,Bd8d4,Bd4d2][%mdl 32]} 21. Rd2 {[%emt 0:02:05]} ({White should play} 21. Qd3) 21... Rfd8 {[%emt 0:00:15]} 22. Rhd1 $2 {[%emt 0:00:58][%mdl 8192] [#] This move loses the game for White.} (22. Qf2 $17) 22... Rxd4 $1 $19 {[%emt 0:00:25][%mdl 512] Black is clearly winning.} 23. b3 {[%emt 0:00:27]} (23. Qe1 Rd5) 23... Rxd2 {[%emt 0:00:27]} 24. bxc4 {[%emt 0:00:07]} Rxd1+ {[%emt 0:00:02]} 25. Kb2 {[%emt 0:00:02]} Rxc4 {[%emt 0:00:42] ...Nd5 is the strong threat.} 26. Qf3 {[%emt 0:00:12]} Rd5 {[%emt 0:00:16] Weighted Error Value: White=0.75/Black=0.09 (flawless)} 0-1

[Event "Slovakia Open 2022"]
[Site "Bratislava"]
[Date "2022.10.01"]
[Round "7.10"]
[White "Slovak, Kilian"]
[Black "Panko, Radoslav"]
[Result "1-0"]
[ECO "C14"]
[WhiteElo "2278"]
[BlackElo "1996"]
[Annotator "TA"]
[PlyCount "56"]
[EventDate "2022.09.30"]
[EventCountry "SVK"]
[SourceTitle "playchess.com"]
[Source "ChessBase"]
[SourceQuality "1"]
[TimeControl "2700+10"]

{[%evp 11,56,13,38,-26,-13,-41,-33,-45,-17,-62,-51,-75,-76,-79,-79,-68,-81,-89,-89,-106,-61,-91,16,9,7,0,6,0,0,0,0,0,0,0,0,0,25,0,0,0,321,320,298,120,29998,29999,29999]} 1. e4 {[%emt 0:00:06]} e6 {[%emt 0:00:02]} 2. d4 {[%emt 0:00:11]} d5 {[%emt 0:00:01]} 3. Nc3 {[%emt 0:00:01]} Nf6 {[%emt 0:00:04]} 4. Bg5 {[%emt 0:00:06]} Be7 {[%emt 0:00:15]} 5. e5 {[%emt 0:00:02]} Nfd7 {[%emt 0:00:02]} 6. h4 {[%emt 0:00:03]} O-O {[%emt 0:00:09]} (6... h6 $5 {[%cal Rh6g5]} 7. Be3 c5 $11) 7. Bxe7 {[%emt 0:02:44] C14: French: Classical System: 4 Bg5 Be7 main line.} ({Better is} 7. Qg4 $1 $14 f5 8. Bxe7 Qxe7 9. Qg5 Qxg5 10. hxg5) 7... Qxe7 $11 {[%emt 0:00:02]} 8. f4 {[%emt 0:00:02]} c5 {[%emt 0:00:08]} ({Much weaker is} 8... Qb4 9. a3 Qe7 10. Nf3 $14) 9. Nf3 {[%emt 0:00:30] Black is slightly better.} Nc6 {[%emt 0:00:16] next ...cxd4 is good for Black.} 10. Qd2 {[%emt 0:08:50]} f6 {[%emt 0:00:41]} 11. Ne2 {[%emt 0:00:31] [#]} cxd4 $1 {[%emt 0:00:57]} 12. Nexd4 {[%emt 0:00:09]} fxe5 {[%emt 0:00:10]} 13. Nxc6 {[%emt 0:00:26]} bxc6 {[%emt 0:00:04]} 14. fxe5 {[%emt 0:00:25] [#]} Rb8 $146 {[%emt 0:11:00]} ({Predecessor:} 14... Rxf3 15. gxf3 Nxe5 16. Be2 Ba6 17. O-O-O Qb7 18. f4 Rb8 19. b3 Nf7 20. Rhg1 Bxe2 21. Qxe2 {1-0 (42) Lewandowski,R (2181)-Nguyen,P (2269) Warsaw 2008}) 15. O-O-O {[%emt 0:03:08]} Qb4 {[%emt 0:00:14][%csl Gb8][%cal Rb4b2]} 16. c3 {[%emt 0:01:15]} Qf4 {[%emt 0:00:02]} ({Black should play} 16... Qa5 $17 17. Kb1 Ba6) 17. Qxf4 {[%emt 0:02:17]} Rxf4 {[%emt 0:00:03]} 18. Rd4 {[%emt 0:00:07]} Rf8 {[%emt 0:01:04]} 19. Bd3 {[%emt 0:03:32]} Nb6 {[%emt 0:05:52]} 20. Rg4 {[%emt 0:02:49]} c5 {[%emt 0:00:44]} 21. Rh3 {[%emt 0:03:13]} Rb7 {[%emt 0:01:48]} 22. Rhg3 {[%emt 0:00:35]} Re7 {[%emt 0:01:29]} 23. h5 {[%emt 0:00:18]} Bd7 {[%emt 0:02:11]} 24. Ng5 {[%emt 0:07:52][%cal Bf3g5,Bg5h7,Bh7f6][%mdl 32]} (24. h6 $5 g6 25. b3 $11) 24... h6 {[%emt 0:02:28]} 25. Nh7 $36 {[%emt 0:00:01][%mdl 2048] White has some pressure.} Rf5 {[%emt 0:03:44][%mdl 8192]} 26. Nf6+ $1 $18 {[%emt 0:00:18]} Kh8 {[%emt 0:00:59]} 27. Rg6 {[%emt 0:01:28]} (27. Nxd7 $18 {and the rest is easy.} Nxd7 28. Bxf5 exf5 29. Ra4 Nxe5 30. Re3) 27... Rxe5 $2 {[%emt 0:01:52][%mdl 8192] [#]} (27... Rg5 $16) 28. Rxh6+ $3 {[%emt 0:00:03][%mdl 576] Back Rank} gxh6 {[%emt 0:00:01] Weighted Error Value: White=0.23 (precise) /Black=0.60} 1-0

[Event "Slovakia Open 2022"]
[Site "Bratislava"]
[Date "2022.10.01"]
[Round "7.11"]
[White "Nytra, Ondrej"]
[Black "Machata, Martin"]
[Result "1-0"]
[ECO "B70"]
[WhiteElo "2233"]
[BlackElo "2212"]
[Annotator "TA"]
[PlyCount "49"]
[EventDate "2022.09.30"]
[EventCountry "SVK"]
[SourceTitle "playchess.com"]
[Source "ChessBase"]
[SourceQuality "1"]
[TimeControl "2700+10"]

{[%evp 18,49,20,22,22,2,38,43,43,31,65,57,68,37,59,58,58,8,32,37,64,64,60,64,62,75,70,79,60,77,641,630,1071,1051]} 1. e4 {[%emt 0:00:10]} c5 {[%emt 0:00:14]} 2. Nf3 {[%emt 0:00:03]} g6 {[%emt 0:00:02]} 3. d4 {[%emt 0:00:02]} cxd4 {[%emt 0:00:01]} 4. Nxd4 {[%emt 0:00:02]} Nc6 {[%emt 0:00:01]} 5. Be2 {[%emt 0:00:35]} Bg7 {[%emt 0:00:04]} 6. Nb3 {[%emt 0:00:02]} Nf6 {[%emt 0:00:15]} 7. Nc3 {[%emt 0:00:03]} O-O {[%emt 0:00:06]} 8. O-O {[%emt 0:00:04]} d6 {[%emt 0:00:10]} 9. Kh1 {[%emt 0:00:02]} a5 {[%emt 0:01:36]} 10. a4 $1 {[%emt 0:00:02]} Nb4 {[%emt 0:01:22] B70: Sicilian Dragon: 6 g3 and 6 Be2 (without a later Be3).} 11. Be3 {[%emt 0:02:06]} Be6 {[%emt 0:02:06]} 12. Nd4 {[%emt 0:00:07] [#]} Rc8 $146 {[%emt 0:00:32] White is slightly better.} ({Predecessor:} 12... Bd7 13. f4 e5 14. Ndb5 Bc6 15. Bf3 exf4 16. Bxf4 d5 17. Bg5 dxe4 18. Qxd8 Rfxd8 {0-1 (45) Vivo,M-Pernisco,E (2235) Mendrisio 1988}) 13. f3 {[%emt 0:05:39]} Bc4 {[%emt 0:01:14]} 14. Bxc4 {[%emt 0:01:56]} Rxc4 {[%emt 0:00:01]} 15. Rf2 {[%emt 0:00:01][%cal Bf1f2,Bf2d2,Bd2d4][%mdl 32]} Qd7 {[%emt 0:07:29]} 16. Nb3 {[%emt 0:01:07]} Ra8 {[%emt 0:04:31]} 17. Bb6 {[%emt 0:01:53]} ({Better is} 17. Nb5 $14) 17... Nc6 {[%emt 0:04:10][%cal Bb4c6,Bc6e5,Be5c4][%mdl 32]} 18. Nb5 {[%emt 0:03:11]} Ra6 {[%emt 0:02:16]} 19. Be3 {[%emt 0:02:40] White is more active.} Ne5 {[%emt 0:02:38]} 20. Rd2 {[%emt 0:01:27]} Rxa4 {[%emt 0:02:27]} 21. Rxa4 {[%emt 0:02:58]} Qxb5 {[%emt 0:00:04]} 22. Ra2 {[%emt 0:00:58]} Nc4 {[%emt 0:09:11]} 23. Qe2 {[%emt 0:01:16] [#] And now Rd4 would win.} Qb4 $2 {[%emt 0:00:15][%mdl 8192]} (23... Qc6 $16) 24. Rd4 $18 {[%emt 0:00:54]} b5 {[%emt 0:00:02]} 25. Bd2 {[%emt 0:00:20] Weighted Error Value: White=0.08 (flawless) /Black=0.65} 1-0